bitfinex/quotes_SOLUSD_20240808
["timestamp","ask_amount","ask_price","bid_price","bid_amount"]
[1723087093424,45.17,155.98,155.87,1.28274045]
[1723087093425,15.7276,155.96,155.87,1.28274045]
[1723087094564,6.5824,155.95,155.79,47.29]
[1723087094856,0.17,155.94,155.79,66.63]
[1723087095154,15.7276,155.96,155.79,66.63]
[1723087095346,15.7276,155.96,155.83,47.29]
[1723087095521,15.7276,155.96,155.84,1.28164715]
[1723087095723,15.7276,155.96,155.84,66.28164715]
[1723087096027,15.7276,155.96,155.85,0.34]
[1723087096468,6.5826,155.95,155.79,47.29]
[1723087096796,0.17,155.94,155.8,20.0]
[1723087096962,0.17,155.95,155.8,20.0]
[1723087097248,6.6382,155.94,155.79,47.29]
[1723087097429,45.17,155.93,155.79,47.29]
[1723087097620,17.38014619,155.92,155.75,47.29]
[1723087097821,6.4147,155.89,155.75,47.29]
[1723087098024,0.17,155.88,155.75,49.87381449]
[1723087098253,45.17,155.91,155.75,49.87381449]
[1723087098453,0.17,155.91,155.75,69.21381449]
[1723087098629,16.3209,155.92,155.79,47.29]
[1723087099352,16.3209,155.92,155.83,47.29]
[1723087099556,16.3209,155.92,155.84,65.34]
[1723087100155,16.3209,155.92,155.79,47.29]
[1723087100331,16.3209,155.92,155.79,66.63]
[1723087100542,16.3209,155.92,155.79,47.29]
[1723087101167,16.3209,155.92,155.83,47.29]
[1723087101467,16.3209,155.92,155.84,0.17]
[1723087102542,16.3209,155.92,155.79,49.86670088]
[1723087102744,16.3209,155.92,155.8,45.34]
[1723087102959,0.17,155.91,155.79,47.29]
[1723087103574,21.7373,155.9,155.75,47.29]
[1723087103743,15.0802,155.86,155.69,23.74630585]
[1723087103949,6.8271,155.85,155.68,6.6534]
[1723087104246,13.2436,155.85,155.71,1.28375422]
[1723087104449,6.8271,155.85,155.71,1.28375422]
[1723087105049,6.6571,155.85,155.71,20.62375422]
[1723087105253,6.6571,155.85,155.71,1.28375422]
[1723087105680,6.6571,155.85,155.71,40.62375422]
[1723087106361,6.6571,155.85,155.72,0.17]
[1723087106562,6.6571,155.85,155.73,1.28355325]
[1723087106747,6.6571,155.85,155.73,21.28355325]
[1723087107162,6.6571,155.85,155.73,1.28355325]
[1723087107462,6.6571,155.85,155.72,1.28355325]
[1723087108477,6.6571,155.85,155.73,0.17]
[1723087108649,6.6571,155.85,155.74,1.28354217]
[1723087108849,6.6571,155.85,155.75,0.17]
[1723087109049,6.6571,155.85,155.76,1.28351183]
[1723087109763,6.6571,155.85,155.71,21.28351182]
[1723087109964,6.6571,155.85,155.72,0.17]
[1723087110478,6.6571,155.85,155.72,1.28334697]
[1723087110774,16.1675,155.83,155.7,49.87033247]
[1723087110978,51.5877,155.82,155.68,6.69209621]
[1723087111175,51.5877,155.82,155.66,47.29]
[1723087111380,6.4461,155.8,155.66,47.29]
[1723087111675,6.4461,155.8,155.66,53.98126344]
[1723087112553,6.4461,155.8,155.66,56.56352903]
[1723087112758,16.3725,155.79,155.66,56.56352903]
[1723087113066,17.60174619,155.79,155.66,56.56352903]
[1723087113270,17.60174619,155.79,155.67,0.17]
[1723087113479,17.60174619,155.79,155.66,56.56352903]
[1723087113777,17.60174619,155.79,155.69,36.9]
[1723087114285,17.60174619,155.79,155.7,45.0]
[1723087114458,17.60174619,155.79,155.69,36.9]
[1723087114658,16.5425,155.79,155.69,36.9]
[1723087115481,16.5425,155.79,155.67,36.9]
[1723087115482,15.702,155.77,155.67,36.9]
[1723087115680,15.702,155.77,155.51,0.8424348]
[1723087115681,15.702,155.74,155.63,36.9]
[1723087115978,16.3953,155.71,155.61,36.9]
[1723087116186,1.22924619,155.7,155.61,36.9]
[1723087116363,0.17,155.7,155.61,36.9]
[1723087116563,16.3953,155.71,155.61,36.9]
[1723087116960,0.17,155.7,155.61,36.9]
[1723087117674,0.17,155.7,155.58,47.48]
[1723087117980,0.17,155.7,155.59,20.0]
[1723087118172,16.3953,155.71,155.6,1.28453002]
[1723087118376,16.3953,155.71,155.61,1.28470946]
[1723087118776,16.3953,155.71,155.62,0.34]
[1723087119177,16.3953,155.71,155.62,45.34]
[1723087119384,16.3953,155.71,155.63,20.0]
[1723087119582,16.3953,155.71,155.64,45.17]
[1723087119782,16.3953,155.71,155.64,45.0]
[1723087120164,16.3953,155.71,155.58,47.48]
[1723087120366,1.22924619,155.7,155.54,6.69725718]
[1723087120766,0.17,155.7,155.54,26.03725718]
[1723087120965,0.17,155.7,155.54,42.43255718]
[1723087121187,16.3953,155.71,155.61,47.48]
[1723087121486,16.3953,155.71,155.62,1.28449193]
[1723087121667,16.3953,155.71,155.62,21.28449193]
[1723087121866,16.3953,155.71,155.63,45.17]
[1723087122091,16.3953,155.71,155.64,20.0]
[1723087122388,16.3953,155.71,155.65,46.45452114]
[1723087122594,16.3953,155.71,155.65,45.17]
[1723087123275,15.9125,155.76,155.69,47.48]
[1723087123500,15.9125,155.76,155.7,45.34]
[1723087123785,15.9125,155.8,155.71,20.0]
[1723087123995,15.9125,155.8,155.72,45.34]
[1723087124185,15.9125,155.8,155.73,20.0]
[1723087124497,15.9125,155.8,155.74,45.17]
[1723087124687,15.9125,155.8,155.75,20.0]
[1723087125196,15.9125,155.8,155.74,45.0]
[1723087125571,15.9125,155.8,155.75,20.34]
[1723087125793,6.164,155.82,155.76,45.66038529]
[1723087125996,15.6965,155.84,155.77,69.10338341]
[1723087126205,15.6965,155.84,155.78,45.0]
[1723087126492,15.6965,155.84,155.79,21.4529628]
[1723087126690,15.6965,155.84,155.8,45.0]
[1723087126894,15.6965,155.84,155.81,20.0]
[1723087128098,15.6965,155.84,155.82,45.17]
[1723087129173,15.8789,155.9,155.83,20.0]
[1723087129376,15.8789,155.9,155.84,45.17]
[1723087129687,15.8789,155.9,155.85,1.28297794]
[1723087129877,15.8789,155.9,155.84,45.17]
[1723087130976,15.8789,155.9,155.78,1.28292622]
[1723087131298,15.8789,155.9,155.79,0.34]
[1723087131688,15.8789,155.9,155.79,0.17]
[1723087131874,15.8789,155.9,155.78,20.0]
[1723087132193,0.17,155.89,155.78,20.0]
[1723087132402,0.17,155.89,155.67,23.7493567]
[1723087132576,0.17,155.89,155.74,66.82]
[1723087132772,0.17,155.89,155.75,1.28327571]
[1723087132993,0.17,155.89,155.74,66.82]
[1723087133301,15.8789,155.9,155.74,66.82]
[1723087133605,15.8789,155.9,155.75,0.34]
[1723087133789,0.17,155.89,155.75,65.34]
[1723087134308,15.8789,155.9,155.76,20.00319024]
[1723087134485,0.17,155.89,155.77,65.34]
[1723087135302,0.17,155.89,155.77,20.0]
[1723087135478,0.17,155.89,155.75,21.28331915]
[1723087136700,0.17,155.89,155.76,45.34]
[1723087136875,0.17,155.89,155.77,20.0]
[1723087137076,0.17,155.89,155.78,45.17]
[1723087137393,0.17,155.89,155.79,20.0]
[1723087137574,0.17,155.89,155.8,0.17]
[1723087137901,0.17,155.89,155.8,45.17]
[1723087138105,0.17,155.89,155.8,0.17]
[1723087138289,6.562,155.87,155.8,20.0]
[1723087138602,6.562,155.87,155.73,0.86332105]
[1723087138603,15.0428,155.85,155.73,0.86332105]
[1723087138778,0.17,155.84,155.73,0.86332105]
[1723087138977,0.17,155.84,155.71,1.28365195]
[1723087139595,21.6048,155.83,155.71,1.28365195]
[1723087139803,0.17,155.82,155.7,47.48]
[1723087140013,0.17,155.82,155.67,15.0428]
[1723087140306,0.17,155.82,155.68,0.45282574]
[1723087140603,15.0428,155.81,155.66,47.48]
[1723087140802,0.17,155.8,155.67,1.01468424]
[1723087141013,15.0428,155.78,155.63,28.29225097]
[1723087141191,1.05924619,155.77,155.63,6.68745097]
[1723087141391,0.34,155.76,155.61,47.48]
[1723087141593,0.17,155.76,155.61,73.5091875]
[1723087141824,15.0428,155.78,155.61,81.85941425]
[1723087141983,15.0428,155.78,155.67,47.48]
[1723087142590,15.0428,155.78,155.68,45.34]
[1723087142780,15.0428,155.78,155.69,20.0]
[1723087143198,15.0428,155.78,155.68,20.0]
[1723087143823,15.0428,155.78,155.69,1.27814513]
[1723087144328,15.0428,155.78,155.7,0.17]
[1723087144609,15.0428,155.78,155.7,20.17]
[1723087144912,15.0428,155.78,155.71,45.0]
[1723087145117,15.0428,155.78,155.72,20.0]
[1723087145317,15.0428,155.78,155.7,20.0]
[1723087145628,0.17,155.77,155.62,9.63000042]
[1723087145834,15.7469,155.76,155.62,1.27977367]
[1723087146118,0.17,155.75,155.63,1.28452216]
[1723087146294,6.4097,155.74,155.63,1.28452216]
[1723087146494,6.4097,155.74,155.63,1.28459493]
[1723087147819,6.4097,155.74,155.63,28.97482168]
[1723087148028,6.4097,155.74,155.64,20.0]
[1723087148209,6.4097,155.74,155.65,1.28435614]
[1723087148408,6.4097,155.74,155.66,0.34]
[1723087148903,6.4097,155.74,155.67,20.62415748]
[1723087149103,6.4097,155.74,155.68,65.34]
[1723087149340,6.4097,155.74,155.68,66.62394667]
[1723087149917,15.7469,155.76,155.68,66.62394667]
[1723087150235,15.7469,155.76,155.68,85.96394667]
[1723087150521,15.7469,155.76,155.7,47.48]
[1723087150722,15.7469,155.76,155.71,66.62386559]
[1723087151612,15.7469,155.76,155.71,65.34]
[1723087152316,16.3574,155.82,155.71,84.68]
[1723087153217,16.3574,155.82,155.72,1.28186891]
[1723087153528,16.3574,155.82,155.73,0.34]
[1723087154236,16.3574,155.82,155.74,1.28170429]
[1723087154405,16.3574,155.82,155.75,0.34]
[1723087154933,16.3574,155.82,155.75,0.17]
[1723087156232,16.3574,155.82,155.6,6.453]
[1723087156233,17.41664619,155.82,155.6,6.453]
[1723087156542,6.4988,155.81,155.65,30.45715749]
[1723087156864,15.2667,155.8,155.65,6.70474915]
[1723087157134,21.7655,155.79,155.64,50.06082669]
[1723087157435,61.3965,155.78,155.64,2.58082669]
[1723087157731,61.3965,155.78,155.6,55.83022675]
[1723087157732,16.0565,155.76,155.6,55.83022675]
[1723087157905,6.5532,155.73,155.61,7.7044016]
[1723087158102,6.5532,155.73,155.61,0.99685536]
[1723087158303,6.5532,155.73,155.57,7.7754662]
[1723087158531,6.5532,155.73,155.63,47.48]
[1723087158713,6.5532,155.73,155.64,1.14137345]
[1723087158912,6.5532,155.73,155.63,48.76425503]
[1723087159230,6.5532,155.73,155.63,68.10425503]
[1723087159402,6.5532,155.73,155.64,0.17]
[1723087159727,6.5532,155.73,155.65,1.28409001]
[1723087159925,6.5532,155.73,155.66,0.34]
[1723087160232,6.5532,155.73,155.66,0.17]
[1723087160412,6.5532,155.73,155.65,0.17]
[1723087161226,6.5532,155.73,155.6,1.28452758]
[1723087161409,6.5532,155.73,155.61,0.17]
[1723087161617,6.5532,155.73,155.61,1.45460153]
[1723087162626,6.5532,155.73,155.61,46.45460153]
[1723087162826,0.17,155.72,155.62,20.0]
[1723087163009,6.5532,155.73,155.6,20.0]
[1723087163010,6.5532,155.73,155.63,1.28442355]
[1723087163322,6.5532,155.73,155.61,1.28442355]
[1723087163522,6.5532,155.73,155.6,20.0]
[1723087163733,0.17,155.72,155.61,1.28442157]
[1723087163934,0.17,155.72,155.59,21.28442156]
[1723087164233,6.5532,155.73,155.6,45.0]
[1723087164531,6.5532,155.73,155.61,21.28451535]
[1723087164737,6.5532,155.73,155.62,45.0]
[1723087164915,6.5532,155.73,155.63,20.34]
[1723087165112,6.5532,155.73,155.64,45.0]
[1723087165311,0.17,155.72,155.65,20.0]
[1723087165706,6.5532,155.73,155.65,20.0]
[1723087165932,6.5532,155.73,155.66,0.17]
[1723087166122,6.5532,155.73,155.66,45.17]
[1723087166616,6.5532,155.73,155.67,20.0]
[1723087167116,6.5532,155.73,155.68,45.0]
[1723087167517,6.5532,155.73,155.67,20.0]
[1723087167706,6.5532,155.73,155.61,20.0]
[1723087168117,6.5532,155.73,155.61,34.96892675]
[1723087168624,6.5532,155.73,155.62,0.61608959]
[1723087169123,1.05924619,155.72,155.59,9.27583536]
[1723087169307,15.4856,155.71,155.59,9.27583536]
[1723087169731,15.3156,155.71,155.6,1.27774353]
[1723087170034,15.3156,155.71,155.61,1.27766141]
[1723087170732,15.3156,155.71,155.61,20.61766141]
[1723087171033,15.3156,155.71,155.62,20.34]
[1723087171221,15.3156,155.71,155.63,46.27749721]
[1723087171423,15.3156,155.71,155.64,20.34]
[1723087171620,15.3156,155.71,155.65,45.0]
[1723087171820,15.3156,155.71,155.66,20.17]
[1723087172022,15.3156,155.71,155.66,20.0]
[1723087172343,15.3156,155.71,155.67,45.0]
[1723087173430,15.3156,155.71,155.68,0.17]
[1723087173639,15.3156,155.71,155.68,20.17]
[1723087173930,15.3156,155.71,155.68,20.0]
[1723087174345,15.3156,155.71,155.64,2.55157405]
[1723087174529,15.3156,155.71,155.65,1.45424148]
[1723087174850,15.3156,155.71,155.66,0.17]
[1723087175016,15.49,155.77,155.66,19.51]
[1723087175207,15.49,155.77,155.67,66.45392865]
[1723087175439,15.49,155.77,155.67,65.0]
[1723087175641,15.49,155.77,155.68,0.17]
[1723087175846,15.49,155.77,155.68,1.622596]
[1723087176220,15.49,155.77,155.68,0.17]
[1723087176843,15.49,155.77,155.68,1.45418112]
[1723087177143,15.49,155.77,155.68,0.17]
[1723087177318,15.49,155.77,155.69,20.6207219]
[1723087177530,6.658,155.82,155.73,19.34]
[1723087177716,6.658,155.82,155.74,66.62345444]
[1723087178442,6.658,155.82,155.74,65.17]
[1723087179333,6.658,155.82,155.74,65.0]
[1723087180428,16.488,155.81,155.74,65.0]
[1723087181249,16.488,155.81,155.74,20.0]
[1723087181551,17.54724619,155.81,155.68,2.56338234]
[1723087181866,0.17,155.8,155.64,47.48]
[1723087182062,1.05924619,155.79,155.64,47.48]
[1723087182228,0.17,155.78,155.64,66.82]
[1723087182425,0.17,155.78,155.64,47.48]
[1723087182749,22.7873,155.77,155.64,47.48]
[1723087183126,1.05924619,155.76,155.64,47.48]
[1723087183351,1.05924619,155.76,155.63,8.35022675]
[1723087183650,0.17,155.75,155.63,2.48848339]
[1723087183857,1.22924619,155.75,155.63,2.48848339]
[1723087184066,1.22924619,155.75,155.61,15.05397491]
[1723087184355,6.0387,155.72,155.61,6.70374816]
[1723087184521,0.17,155.71,155.61,6.70374816]
[1723087184720,45.17,155.71,155.56,63.7065]
[1723087184946,1.05924619,155.7,155.54,8.35022675]
[1723087185149,15.8971,155.68,155.54,8.35022675]
[1723087185449,7.43884619,155.67,155.53,6.70499611]
[1723087185623,52.43884619,155.67,155.51,0.8424348]
[1723087186229,6.4246,155.65,155.51,0.8424348]
[1723087186430,15.8971,155.62,155.51,0.8424348]
[1723087186624,1.05924619,155.61,155.51,0.8424348]
[1723087186830,1.39924619,155.6,155.51,0.8424348]
[1723087187539,7.82604619,155.6,155.51,0.8424348]
[1723087187729,45.0,155.59,155.43,47.48]
[1723087187929,1.39924619,155.58,155.43,47.48]
[1723087188531,0.34,155.58,155.43,47.48]
[1723087189726,0.17,155.58,155.43,47.48]
[1723087189942,1.22924619,155.58,155.44,20.0]
[1723087190145,0.17,155.58,155.44,20.0]
[1723087190353,0.34,155.58,155.44,20.0]
[1723087191270,0.34,155.58,155.45,45.0]
[1723087191560,0.17,155.58,155.46,20.17]
[1723087191761,0.17,155.58,155.47,45.0]
[1723087191941,0.17,155.58,155.48,21.45597015]
[1723087192257,0.34,155.58,155.48,20.0]
[1723087192458,0.17,155.58,155.48,21.13011397]
[1723087192761,0.17,155.58,155.49,46.13004128]
[1723087192952,0.17,155.58,155.5,20.0]
[1723087193139,0.34,155.58,155.48,20.0]
[1723087193339,0.17,155.58,155.48,20.0]
[1723087193855,0.17,155.58,155.47,0.17]
[1723087193856,0.17,155.58,155.47,1.35016595]
[1723087194157,15.8971,155.62,155.47,0.17]
[1723087194463,1.05924619,155.61,155.44,21.18014707]
[1723087194659,22.59938871,155.62,155.44,21.18078286]
[1723087194957,29.02548871,155.62,155.45,1.18063094]
[1723087195260,22.59938871,155.62,155.46,48.66055499]
[1723087195441,0.17,155.61,155.47,20.0]
[1723087195634,45.17,155.61,155.48,1.18101988]
[1723087195833,45.17,155.61,155.49,1.35094392]
[1723087196257,46.22924619,155.61,155.49,20.17]
[1723087196438,51.5963,155.61,155.49,20.0]
[1723087196880,0.17,155.6,155.49,20.0]
[1723087197239,22.6785,155.59,155.43,6.69857672]
[1723087197554,6.4279,155.57,155.43,6.69857672]
[1723087197737,45.34,155.56,155.43,6.69857672]
[1723087197937,45.0,155.56,155.43,6.69857672]
[1723087198159,0.17,155.55,155.43,6.69857672]
[1723087198542,0.17,155.55,155.44,20.0]
[1723087198751,0.17,155.55,155.45,45.0]
[1723087199269,0.17,155.55,155.44,45.0]
[1723087199648,22.6785,155.59,155.45,0.96908739]
[1723087199959,0.17,155.58,155.45,0.96908739]
[1723087200137,0.17,155.58,155.46,0.17]
[1723087200341,51.7676,155.58,155.45,20.96879898]
[1723087200641,7.48724619,155.57,155.46,45.0]
[1723087200845,45.34,155.56,155.45,0.17]
[1723087201560,0.17,155.56,155.45,0.17]
[1723087201761,22.6785,155.59,155.45,20.17]
[1723087201762,45.34,155.57,155.45,20.17]
[1723087201938,45.34,155.57,155.46,45.0]
[1723087201939,0.17,155.57,155.46,45.0]
[1723087202144,0.17,155.57,155.47,20.43024761]
[1723087202365,0.17,155.57,155.47,20.0]
[1723087202582,0.17,155.57,155.48,0.79868272]
[1723087202743,0.34,155.57,155.48,0.79868272]
[1723087203055,0.17,155.57,155.49,0.79863135]
[1723087204168,22.6785,155.59,155.49,0.79863135]
[1723087204346,22.6785,155.59,155.5,0.17]
[1723087204971,22.6785,155.59,155.49,0.17]
[1723087205853,0.17,155.58,155.49,0.17]
[1723087206050,22.6785,155.59,155.49,0.17]
[1723087206248,46.22924619,155.58,155.43,6.70900185]
[1723087206449,6.428,155.57,155.43,6.70900185]
[1723087206745,45.34,155.56,155.39,6.0144]
[1723087207162,45.34,155.56,155.41,6.69954713]
[1723087207362,16.95084619,155.55,155.41,6.69954713]
[1723087207571,6.5428,155.53,155.41,6.69954713]
[1723087207765,0.17,155.52,155.41,6.69954713]
[1723087208079,6.5428,155.53,155.42,20.0]
[1723087209271,6.5428,155.53,155.43,45.0]
[1723087209577,6.5428,155.53,155.44,20.17]
[1723087209877,6.5428,155.53,155.45,45.0]
[1723087210571,6.5428,155.53,155.46,0.96769608]
[1723087210777,6.5428,155.53,155.46,20.96769608]
[1723087211079,6.5428,155.53,155.47,45.0]
[1723087211266,6.5428,155.53,155.48,20.0]
[1723087211657,6.5428,155.53,155.43,21.19819378]
[1723087212744,15.8916,155.55,155.46,47.48]
[1723087212944,15.8916,155.55,155.47,66.53840073]
[1723087213152,15.8916,155.55,155.47,65.34]
[1723087213353,15.8916,155.55,155.47,65.17]
[1723087213950,15.8916,155.55,155.48,1.29103327]
[1723087214261,15.8916,155.55,155.49,0.17]
[1723087214467,15.8916,155.55,155.47,66.29081694]
[1723087215071,15.8916,155.55,155.48,0.17]
[1723087215277,15.8916,155.55,155.47,65.17]
[1723087215773,15.8916,155.55,155.48,0.17]
[1723087215963,15.8916,155.55,155.47,65.17]
[1723087216661,15.8916,155.55,155.48,0.17]
[1723087218381,15.8916,155.55,155.47,65.17]
[1723087218686,15.8916,155.55,155.47,20.0]
[1723087218889,15.8916,155.55,155.43,20.0]
[1723087219054,15.8916,155.55,155.46,66.81]
[1723087219260,642.7,155.68,155.5,66.81]
[1723087219261,15.1674,155.59,155.5,66.81]
[1723087219471,15.1674,155.59,155.51,20.4109531]
[1723087219757,15.1674,155.65,155.52,0.60493016]
[1723087219951,15.1674,155.65,155.54,47.48]
[1723087220188,15.1674,155.65,155.55,66.60984466]
[1723087220376,15.1674,155.65,155.55,65.17]
[1723087220579,15.1674,155.65,155.56,1.43960454]
[1723087220969,15.1674,155.65,155.56,0.17]
[1723087221154,15.1674,155.65,155.49,0.85190247]
[1723087221354,15.1674,155.65,155.5,0.17]
[1723087221588,15.1674,155.65,155.49,45.17]
[1723087222158,0.17,155.64,155.49,64.5]
[1723087222578,15.1674,155.65,155.49,64.5]
[1723087222784,15.1674,155.65,155.52,66.81]
[1723087222963,15.1674,155.65,155.53,64.67]
[1723087223155,15.1674,155.65,155.54,20.0]
[1723087223354,15.1674,155.65,155.55,45.17]
[1723087223560,15.1674,155.65,155.56,20.17]
[1723087223783,15.1674,155.65,155.57,45.0]
[1723087223988,15.1674,155.65,155.58,20.17]
[1723087224167,15.1674,155.65,155.59,45.0]
[1723087224567,15.1674,155.65,155.52,47.48]
[1723087225182,15.1674,155.65,155.56,47.48]
[1723087225388,16.28,155.69,155.57,26.50418731]
[1723087225588,16.28,155.69,155.6,47.48]
[1723087225759,16.28,155.69,155.61,20.41807981]
[1723087226086,16.28,155.69,155.62,45.17]
[1723087226289,16.28,155.69,155.63,20.0]
[1723087226792,16.28,155.69,155.64,45.0]
[1723087226957,16.28,155.69,155.65,0.17]
[1723087227161,16.28,155.69,155.64,45.0]
[1723087228485,16.28,155.69,155.57,6.086]
[1723087228786,16.28,155.69,155.58,65.34]
[1723087229289,16.28,155.69,155.58,66.62481547]
[1723087230369,16.28,155.69,155.58,85.95481547]
[1723087231371,16.28,155.69,155.6,47.48]
[1723087231566,16.28,155.69,155.61,66.62456777]
[1723087231767,16.425,155.74,155.61,66.62456777]
[1723087232782,16.425,155.74,155.61,65.34]
[1723087232981,0.17,155.73,155.61,65.34]
[1723087234169,6.5913,155.73,155.61,65.17]
[1723087234782,15.7546,155.71,155.58,1.28373085]
[1723087234988,6.4238,155.68,155.52,2.58808162]
[1723087235191,1.05924619,155.67,155.52,2.58808162]
[1723087235394,1.05924619,155.67,155.51,53.9806]
[1723087235395,28.9529,155.66,155.51,47.48]
[1723087235690,22.5286,155.66,155.51,47.48]
[1723087235892,22.5286,155.66,155.52,1.18202452]
[1723087236468,22.3586,155.66,155.52,1.18202452]
[1723087236997,22.1886,155.66,155.52,1.18202452]
[1723087237371,22.1886,155.66,155.57,66.81]
[1723087237571,22.1886,155.66,155.58,46.62356348]
[1723087237779,22.1886,155.66,155.59,20.0]
[1723087237975,22.1886,155.66,155.6,0.17]
[1723087238177,22.1886,155.66,155.6,45.34]
[1723087238374,22.1886,155.66,155.61,20.0]
[1723087238590,22.1886,155.66,155.62,45.17]
[1723087238795,22.1886,155.66,155.63,20.0]
[1723087239100,22.7245,155.7,155.64,45.0]
[1723087239280,22.7245,155.7,155.65,21.45458454]
[1723087239477,22.7245,155.7,155.66,45.0]
[1723087239688,22.7245,155.7,155.67,0.17]
[1723087239900,22.7245,155.7,155.65,20.17]
[1723087239901,22.7245,155.7,155.65,20.0]
[1723087240081,22.7245,155.7,155.62,20.0]
[1723087240278,22.7245,155.7,155.63,45.17]
[1723087240595,22.7245,155.7,155.64,20.0]
[1723087240797,22.7245,155.7,155.65,45.17]
[1723087241298,22.7245,155.7,155.66,20.0]
[1723087241473,22.7245,155.7,155.62,47.48]
[1723087241678,22.7245,155.7,155.63,65.17]
[1723087242980,22.7245,155.7,155.63,20.0]
[1723087243183,0.17,155.69,155.58,47.48]
[1723087243377,22.7245,155.7,155.58,47.48]
[1723087244275,0.17,155.69,155.58,47.48]
[1723087245304,0.17,155.69,155.59,20.0]
[1723087245502,22.7245,155.7,155.59,20.0]
[1723087245688,22.7245,155.7,155.6,45.34]
[1723087245894,22.7245,155.7,155.61,20.0]
[1723087246097,22.7245,155.7,155.62,45.0]
[1723087246409,22.7245,155.7,155.63,0.17]
[1723087246882,22.4041,155.74,155.66,47.48]
[1723087247087,22.4041,155.74,155.67,1.18036181]
[1723087247295,16.2745,155.74,155.68,1.35028599]
[1723087247481,16.2745,155.74,155.67,65.17]
[1723087248114,16.2745,155.74,155.67,20.0]
[1723087248584,16.2745,155.74,155.62,23.72346451]
[1723087248780,16.2745,155.74,155.63,45.17]
[1723087249084,16.2745,155.74,155.64,21.28445181]
[1723087249308,16.2745,155.74,155.65,46.62436589]
[1723087249486,16.2745,155.74,155.66,20.0]
[1723087249688,16.2745,155.74,155.66,21.2842635]
[1723087249989,16.2745,155.74,155.67,45.17]
[1723087250505,16.2745,155.74,155.68,20.0]
[1723087250725,16.2745,155.74,155.69,45.0]
[1723087250898,16.2745,155.74,155.7,0.17]
[1723087252424,22.2533,155.78,155.7,20.17]
[1723087252593,22.2533,155.78,155.71,46.2839799]
[1723087252797,16.1237,155.78,155.72,20.17]
[1723087253122,16.1237,155.78,155.73,45.0]
[1723087253331,22.6349,155.82,155.74,0.17]
[1723087253509,22.6349,155.82,155.74,20.17]
[1723087253821,22.6349,155.82,155.75,45.0]
[1723087254020,22.6349,155.82,155.76,20.0]
[1723087255804,22.6349,155.82,155.74,0.17]
[1723087256013,22.6349,155.82,155.7,20.0]
[1723087256199,1.22924619,155.81,155.7,20.0]
[1723087256403,0.17,155.81,155.7,20.0]
[1723087256600,22.6349,155.82,155.71,0.17]
[1723087256801,0.17,155.81,155.7,20.0]
[1723087257517,0.17,155.81,155.71,45.17]
[1723087257719,0.17,155.81,155.72,20.0]
[1723087257925,0.17,155.81,155.73,45.0]
[1723087258497,0.17,155.81,155.72,20.0]
[1723087258713,0.17,155.81,155.71,0.17]
[1723087258905,0.17,155.81,155.7,20.0]
[1723087260793,22.6349,155.82,155.71,45.17]
[1723087261214,1.22924619,155.81,155.72,20.0]
[1723087261408,22.6349,155.82,155.72,20.0]
[1723087261603,22.6349,155.82,155.73,45.17]
[1723087261937,22.6349,155.82,155.74,20.0]